bitfinex-derivatives/quotes_SOLF0:USTF0_20240907
["timestamp","ask_amount","ask_price","bid_price","bid_amount"]
[1725709414986,3.9353,127.08,127.06,13.6056]
[1725709416684,3.9353,127.08,127.06,9.67]
[1725709418789,3.9353,127.08,127.05,5.3036]
[1725709419481,3.9356,127.07,127.05,1.3677]
[1725709420087,9.67,127.1,127.04,9.67]
[1725709420278,13.51032073,127.1,127.04,9.67]
[1725709420680,3.935,127.09,127.05,3.936]
[1725709420877,13.51032073,127.1,127.05,3.936]
[1725709421785,3.84032073,127.1,127.0,1.315]
[1725709421987,9.67,127.09,127.03,9.67]
[1725709422184,13.6804067,127.09,127.03,9.67]
[1725709422383,14.9818067,127.09,127.03,13.6065]
[1725709422887,3.936,127.05,127.03,9.67]
[1725709423185,14.9818067,127.09,127.02,13.6068]
[1725709423186,38.5818067,127.09,127.02,13.6068]
[1725709423382,3.9362,127.05,127.02,13.6068]
[1725709423988,3.9362,127.05,127.03,3.9366]
[1725709424190,3.9362,127.05,127.02,9.67]
[1725709424491,3.9362,127.05,127.03,3.9365]
[1725709424689,3.9369,127.03,127.0,1.315]
[1725709424896,3.9369,127.03,127.0,10.985]
[1725709425383,3.937,127.02,127.0,10.985]
[1725709426386,3.9367,127.03,127.0,14.9225]
[1725709428896,3.9367,127.03,127.01,9.67]
[1725709430494,3.9364,127.04,127.01,13.6072]
[1725709430695,3.9364,127.04,127.03,9.67]
[1725709437995,38.5818067,127.09,127.03,9.67]
[1725709437996,3.9362,127.05,127.03,9.67]
[1725709438302,3.9362,127.05,127.04,9.67]
[1725709451009,0.084,127.15,127.04,13.58495606]
[1725709451010,159.40567574,127.12,127.04,13.58495606]
[1725709451307,159.40567574,127.12,127.07,9.67]
[1725709451512,0.42311453,127.11,127.07,9.67]
[1725709452304,3.9352,127.08,127.07,9.67]
[1725709463111,3.84228932,127.1,127.05,1.3147]
[1725709463311,33.27,127.11,127.05,10.9847]
[1725709464017,3.9355,127.07,127.05,10.9847]
[1725709470131,3.9355,127.07,127.06,9.67]
[1725709476239,3.9355,127.07,127.05,1.3147]
[1725709476442,3.9355,127.07,127.05,10.9847]
[1725709476939,3.9357,127.06,127.05,1.3147]
[1725709477137,13.57725271,127.1,127.03,3.9365]
[1725709477332,33.27,127.1,127.0,4.03025372]
[1725709477538,1.3429,127.09,127.03,9.67]
[1725709477840,3.9362,127.05,127.03,9.67]
[1725709484946,1.3429,127.09,126.99,1.3159]
[1725709484947,1.3429,127.09,127.04,9.67]
[1725709485151,1.3429,127.09,127.07,9.67]
[1725709485342,3.9351,127.08,127.07,9.67]
[1725709496250,3.9351,127.08,127.06,3.9356]
[1725709496549,3.9351,127.08,127.07,9.67]
[1725709499151,3.9354,127.07,127.04,5.302]
[1725709499349,33.27,127.1,127.04,11.0358]
[1725709499550,2.8259,127.09,127.04,11.0358]
[1725709500652,2.8259,127.09,127.05,9.67]
[1725709500853,9.67,127.11,127.05,9.67]
[1725709501155,3.9353,127.08,127.05,13.6058]
[1725709502752,3.9354,127.07,127.05,13.6058]
[1725709505258,3.9354,127.07,127.05,9.67]
[1725709511766,3.9357,127.06,127.05,9.67]
[1725709513376,33.27,127.09,127.02,9.67]
[1725709514160,3.9362,127.05,127.02,3.9367]
[1725709514366,3.9362,127.05,127.04,9.67]
[1725709516779,9.67,127.06,126.99,2.6204]
[1725709517072,9.67,127.06,126.99,10.9657]
[1725709517263,12.4013,127.06,126.99,10.9657]
[1725709517467,12.4013,127.06,126.99,14.9033]
[1725709517468,3.937,127.02,126.99,14.9033]
[1725709520471,3.9367,127.03,127.01,9.67]
[1725709520671,3.9115862,127.1,127.01,9.67]
[1725709520876,3.9359,127.06,127.05,9.67]
[1725709521868,23.6,127.08,127.0,9.67]
[1725709522170,9.67,127.06,127.0,9.67]
[1725709522866,3.9369,127.02,127.0,9.67]
[1725709524372,3.9369,127.02,127.0,13.6075]
[1725709525972,3.9369,127.02,127.0,9.67]
[1725709526167,3.9369,127.02,126.99,1.2957]
[1725709526168,12.3078,127.07,127.01,9.67]
[1725709526377,2.6378,127.07,127.02,9.67]
[1725709526770,3.9363,127.04,127.02,9.67]
[1725709526972,2.6378,127.07,127.02,9.67]
[1725709527368,3.9366,127.03,127.02,9.67]
[1725709528275,3.9366,127.03,127.01,3.937]
[1725709528773,3.9366,127.03,127.0,13.6074]
[1725709530178,3.9366,127.03,127.01,3.9372]
[1725709532678,3.9366,127.03,127.0,13.6074]
[1725709533369,3.9369,127.02,127.0,13.6074]
[1725709533680,35.9078,127.07,127.0,13.6074]
[1725709533875,3.9368,127.03,127.0,13.6074]
[1725709534081,3.9368,127.03,127.0,9.67]
[1725709534780,3.9368,127.03,127.0,13.6073]
[1725709536483,35.9078,127.07,127.0,13.6073]
[1725709537284,3.9368,127.03,127.0,13.6073]
[1725709540387,3.9368,127.03,127.01,3.9372]
[1725709540582,3.9368,127.03,127.0,9.67]
[1725709540984,3.9368,127.03,127.0,13.6073]
[1725709541882,2.6378,127.07,127.02,9.67]
[1725709542082,9.67,127.09,127.03,9.67]
[1725709542387,11.71300301,127.1,127.03,9.67]
[1725709542388,21.38300301,127.1,127.03,9.67]
[1725709543289,3.936,127.06,127.03,13.6065]
[1725709545885,133.98984535,127.09,127.04,13.64157925]
[1725709546083,133.98984535,127.09,127.07,9.67]
[1725709546479,133.98984535,127.09,127.05,14.9226]
[1725709547390,3.9354,127.07,127.05,14.9226]
[1725709547983,3.9354,127.07,127.05,1.3168]
[1725709548276,133.98984535,127.09,127.02,1.356]
[1725709548277,3.9357,127.06,127.03,9.67]
[1725709548485,9.67,127.08,127.02,5.2561]
[1725709548789,9.67,127.08,127.02,14.9261]
[1725709548989,3.9361,127.05,127.02,14.9261]
[1725709552195,9.67,127.07,127.02,1.3193]
[1725709552796,3.9365,127.04,127.02,1.3193]
[1725709553185,3.9363,127.05,127.02,5.2562]
[1725709553392,3.9363,127.05,127.02,14.9262]
[1725709555891,3.9358,127.06,127.04,9.67]
[1725709556094,2.6875,127.08,127.04,9.67]
[1725709557385,3.936,127.06,127.04,9.67]
[1725709558196,12.3575,127.08,127.02,1.3193]
[1725709558402,12.3575,127.08,127.02,10.9893]
[1725709559097,3.9363,127.05,127.02,14.9261]
[1725709559297,12.3575,127.08,127.02,14.9261]
[1725709559495,3.9363,127.05,127.02,14.9261]
[1725709559699,12.3575,127.08,127.02,14.9261]
[1725709560603,3.9363,127.05,127.02,14.9261]
[1725709560793,2.6875,127.08,127.03,3.9365]
[1725709561197,3.9361,127.05,127.03,3.9365]
[1725709561397,2.6875,127.08,127.02,10.9893]
[1725709561398,2.6875,127.08,127.02,14.9261]
[1725709562298,3.9365,127.04,127.02,10.9893]
[1725709563303,3.9365,127.04,127.02,14.9262]
[1725709564204,3.9365,127.04,127.02,10.9893]
[1725709566002,3.9365,127.04,127.02,14.9262]
[1725709566205,3.9365,127.04,127.02,1.3193]
[1725709566407,3.9366,127.03,127.02,1.3193]
[1725709568605,3.9366,127.03,127.01,13.6071]
[1725709569008,3.9366,127.03,127.01,9.67]
[1725709571399,2.6875,127.08,126.99,1.3107]
[1725709571400,9.67,127.05,126.99,1.3107]
[1725709571601,9.67,127.04,126.99,1.3107]
[1725709572308,3.9375,127.01,126.99,1.3107]
[1725709574104,3.9375,127.01,127.0,9.67]
[1725709574307,3.9375,127.01,126.99,10.9807]
[1725709579311,3.9375,127.0,126.99,1.3107]
[1725709579501,3.9375,127.0,126.99,10.9807]
[1725709579911,3.9375,127.0,126.99,1.3107]
[1725709580101,3.9375,127.0,126.98,9.67]
[1725709581303,3.9375,127.0,126.98,13.6081]
[1725709582101,23.6,127.07,126.99,9.67]
[1725709582410,12.3361,127.08,127.02,9.67]
[1725709583111,2.6661,127.08,127.04,9.67]
[1725709583814,2.6661,127.08,126.98,5.32412098]
[1725709584115,9.67,127.07,127.01,9.67]
[1725709585217,3.9365,127.04,127.01,13.6072]
[1725709586615,3.9365,127.04,127.02,2.86148979]
[1725709586815,3.9365,127.04,127.01,13.6072]
[1725709587020,3.9365,127.04,127.02,2.86148834]
[1725709587214,3.9365,127.04,127.01,13.6072]
[1725709587426,3.9365,127.04,127.02,2.86148543]
[1725709587616,3.9365,127.04,127.01,13.6072]
[1725709587812,3.9365,127.04,127.02,2.86148252]
[1725709588122,3.9365,127.04,127.01,14.9661]
[1725709588322,3.9365,127.04,127.02,2.86148979]
[1725709588518,3.9365,127.04,127.01,14.9661]
[1725709599535,3.9363,127.05,127.02,13.6067]
[1725709600534,3.9363,127.05,127.03,3.9366]
[1725709600747,3.9363,127.04,127.01,1.3589]
[1725709600942,3.9363,127.04,127.01,11.0289]
[1725709601440,3.9363,127.04,127.01,14.966]
[1725709601836,3.9363,127.04,127.01,5.296]
[1725709602040,3.9363,127.04,127.01,14.966]
[1725709604041,26.3061,127.08,127.01,14.966]
[1725709604241,3.9362,127.05,127.02,9.67]
[1725709604833,3.9362,127.05,127.02,13.6067]
[1725709609849,9.67,127.07,127.02,13.6067]
[1725709612450,3.9365,127.04,127.02,13.6067]
[1725709612839,3.9365,127.04,127.01,14.966]
[1725709613044,3.9366,127.03,127.01,14.966]
[1725709619647,3.9364,127.04,127.01,14.966]
[1725709623455,33.31,127.07,127.01,5.296]
[1725709624046,3.9366,127.04,127.01,5.296]
[1725709624255,33.31,127.07,127.01,5.296]
[1725709624652,9.67,127.03,126.96,2.6227]
[1725709624949,13.52470779,127.03,126.97,2.8631117]
[1725709625159,13.52470779,127.03,126.98,2.86310789]
[1725709625343,13.52470779,127.03,126.97,3.9383]
[1725709625750,3.9377,127.0,126.97,3.9383]
[1725709626151,37.16470779,127.03,126.96,20.13838047]
[1725709626357,3.938,126.99,126.97,2.8632076]
[1725709626554,3.938,126.99,126.96,20.13838047]
[1725709626749,3.938,126.99,126.97,2.86334796]
[1725709626945,3.938,126.99,126.96,20.13838047]
[1725709627861,3.938,126.99,126.97,2.86334796]
[1725709628355,3.938,126.99,126.96,20.13838047]
[1725709628661,3.938,126.99,126.97,2.86332303]
[1725709628847,3.938,126.99,126.96,20.13838047]
[1725709629053,3.938,126.99,126.97,2.86332306]
[1725709629253,3.938,126.99,126.96,20.13838047]
[1725709629447,3.938,126.99,126.97,2.86332306]
[1725709629654,3.938,126.99,126.96,20.13838047]
[1725709629854,3.938,126.99,126.97,2.86332306]
[1725709630058,3.938,126.99,126.96,20.13838047]
[1725709630254,3.9382,126.98,126.97,2.86332306]
[1725709630457,3.9382,126.98,126.96,12.2927]
[1725709630661,3.9382,126.98,126.96,9.67]
[1725709630858,3.9382,126.98,126.95,18.83460415]
[1725709631456,3.9382,126.98,126.96,2.86336742]
[1725709631656,3.9382,126.98,126.95,18.83460415]
[1725709631859,3.9382,126.98,126.96,2.86336636]
[1725709632056,33.31,127.01,126.95,10.974]
[1725709632255,9.67,127.0,126.95,9.67]
[1725709632459,9.67,127.0,126.95,13.57752362]
[1725709632658,9.67,127.0,126.95,9.67]
[1725709633063,9.67,127.01,126.95,9.67]
[1725709633764,3.9384,126.98,126.95,13.6089]
[1725709635570,3.9385,126.97,126.95,13.6089]
[1725709635961,9.67,127.01,126.95,13.6089]
[1725709636469,3.9383,126.98,126.95,13.6089]
[1725709636860,3.9383,126.98,126.95,14.9293]
[1725709639470,3.9385,126.97,126.95,10.9904]
[1725709639672,9.67,127.0,126.95,1.3204]
[1725709639864,10.9538,127.0,126.95,1.3204]
[1725709640768,12.3324,127.0,126.95,1.3204]
[1725709641171,3.9388,126.96,126.95,1.3204]
[1725709645472,3.9394,126.95,126.92,3.94]
[1725709645678,9.67,126.98,126.92,3.94]
[1725709645978,9.67,126.98,126.92,13.61]
[1725709646272,3.9393,126.95,126.92,13.61]
[1725709646472,9.67,126.98,126.92,3.94]
[1725709647083,9.67,126.98,126.92,13.61]
[1725709647276,9.67,126.95,126.91,1.3212]
[1725709647469,144.55409675,126.97,126.91,1.3212]
[1725709647675,3.9393,126.95,126.92,9.67]
[1725709647973,3.9393,126.95,126.93,9.67]
[1725709649771,3.9393,126.95,126.92,9.67]
[1725709650571,3.9393,126.95,126.93,9.67]
[1725709650772,3.9389,126.96,126.93,9.67]
[1725709651377,144.55409675,126.97,126.93,9.67]
[1725709651378,3.9391,126.95,126.93,9.67]
[1725709651976,144.55409675,126.97,126.94,3.94089838]
[1725709652178,144.55409675,126.97,126.94,13.61089838]
[1725709652473,148.49279675,126.97,126.94,13.61089838]
[1725709652877,144.55409675,126.97,126.94,17.55029838]
[1725709653179,144.55409675,126.97,126.95,1.3496]
[1725709653385,9.67,127.02,126.96,9.67]
[1725709653679,3.9381,126.99,126.96,9.67]
[1725709653880,3.9381,126.99,126.96,13.6087]
[1725709654382,3.9381,126.99,126.96,9.67]
[1725709655183,3.9382,126.98,126.96,9.67]
[1725709655382,3.9382,126.98,126.95,5.2885]
[1725709655683,9.67,127.0,126.95,1.3496]
[1725709656273,3.9385,126.98,126.95,14.9587]
[1725709660884,3.9385,126.98,126.96,3.9387]
[1725709661086,3.938,126.99,126.96,13.6087]
[1725709661277,3.938,126.99,126.96,9.67]
[1725709661889,9.67,127.0,126.92,1.3914]
[1725709662090,3.98425029,126.99,126.94,9.67]
[1725709662786,3.9388,126.96,126.94,9.67]
[1725709663378,3.9391,126.95,126.94,9.67]
[1725709664787,3.9397,126.93,126.92,6.68582705]
[1725709664990,31.5144,127.02,126.92,16.35582705]
[1725709665188,11.87724292,127.02,126.94,9.67]
[1725709665386,3.9388,126.96,126.94,9.67]
[1725709667080,3.9388,126.97,126.94,13.6093]
[1725709667287,3.9388,126.97,126.95,9.67]
[1725709668681,3.9389,126.96,126.94,9.67]
[1725709669092,128.72744948,127.03,126.95,9.67]
[1725709669393,128.72744948,127.03,126.92,6.68582705]
[1725709669394,128.72744948,127.03,126.98,9.67]
[1725709670893,3.9375,127.01,126.98,9.67]
[1725709671596,167.65362201,127.2,127.0,9.67]
[1725709671785,9.67,127.09,127.02,9.67]
[1725709671990,0.42355901,127.08,127.02,9.67]
[1725709672285,3.9365,127.04,127.02,9.67]
[1725709673497,2.7896,127.1,127.03,3.9366]
[1725709673498,3.9359,127.06,127.03,3.9366]
[1725709673695,2.7896,127.1,127.04,9.67]
[1725709673993,3.936,127.06,127.04,9.67]
[1725709674189,2.7896,127.1,127.04,9.67]
[1725709674594,3.9359,127.06,127.04,9.67]
[1725709675496,9.67,127.08,127.01,17.6312]
[1725709675706,9.67,127.08,127.01,16.3428]
[1725709675898,9.67,127.08,127.01,14.995]
[1725709676895,9.67,127.08,127.03,9.67]
[1725709677903,3.9362,127.05,127.03,9.67]
[1725709678904,3.9363,127.04,127.03,9.67]
[1725709689609,3.9368,127.03,127.01,1.3879]
[1725709689807,3.9368,127.03,127.01,11.0579]
[1725709690200,3.9368,127.03,127.01,14.9951]
[1725709693415,3.9364,127.04,127.02,9.67]
[1725709693717,134.78164524,127.08,127.02,13.6069]
[1725709693917,134.78164524,127.08,127.04,9.67]
[1725709694220,3.936,127.05,127.04,9.67]
[1725709696217,134.78164524,127.08,127.04,9.67]
[1725709696511,134.78164524,127.08,127.06,9.67]
[1725709696709,3.9356,127.07,127.06,9.67]
[1725709699212,138.71684524,127.08,127.06,9.67]
[1725709700015,3.9352,127.08,127.06,13.6056]
[1725709700916,3.99252209,127.12,127.07,9.67]
[1725709701224,2.6267,127.14,127.09,9.67]
[1725709701514,2.6267,127.14,127.1,13.6044]
[1725709701719,3.87908749,127.16,127.1,9.67]
[1725709701911,33.31,127.19,127.11,13.53570454]
[1725709702112,4.35063915,127.18,127.13,9.67]
[1725709702419,0.42274326,127.17,127.13,9.67]
[1725709702620,3.9327,127.16,127.13,9.67]
[1725709703319,187.31087462,127.19,127.13,9.67]
[1725709703620,0.42264843,127.18,127.13,9.67]
[1725709704221,3.9328,127.16,127.13,9.67]
[1725709704417,167.53421746,127.19,127.13,9.67]
[1725709704612,0.4226484,127.18,127.13,9.67]
[1725709705318,167.53421746,127.19,127.13,9.67]
[1725709706127,3.9331,127.15,127.13,9.67]
[1725709707724,3.9332,127.14,127.13,9.67]
[1725709724539,3.9336,127.13,127.11,9.67]
[1725709725537,3.9336,127.13,127.11,13.604]
[1725709725738,3.9334,127.14,127.11,9.67]
[1725709725943,3.9334,127.14,127.13,9.67]
[1725709730143,3.933,127.15,127.13,13.6035]
[1725709731042,157.86421746,127.19,127.13,13.6035]
[1725709731043,3.9327,127.16,127.13,13.6035]
[1725709731245,157.86421746,127.19,127.13,9.67]
[1725709731837,3.9332,127.15,127.13,9.67]
[1725709732338,191.17421746,127.19,127.13,9.67]
[1725709732533,191.17421746,127.19,127.12,3.93815469]
[1725709732744,33.31,127.18,127.12,9.67]
[1725709732941,33.31,127.18,127.12,13.54283358]
[1725709733141,3.9335,127.14,127.12,13.54283358]
[1725709734642,33.31,127.18,127.12,13.54283358]
[1725709735244,3.9335,127.13,127.12,13.54283358]
[1725709736249,3.9334,127.14,127.12,13.54283358]
[1725709740042,3.9334,127.14,127.12,17.47663358]
[1725709740245,3.9334,127.14,127.13,9.67]
[1725709742146,3.933,127.15,127.13,9.67]
[1725709742362,3.933,127.15,127.14,9.67]
[1725709746747,3.9329,127.16,127.14,13.6032]
[1725709748346,3.9325,127.17,127.14,13.6032]
[1725709748951,187.31087462,127.19,127.12,3.87283358]
[1725709749151,187.31087462,127.19,127.05,5.29222237]
[1725709749152,177.64087462,127.19,127.13,9.67]
[1725709749351,187.31087462,127.19,127.13,13.56495664]
[1725709750056,3.933,127.15,127.13,13.56495664]
[1725709751157,3.933,127.15,127.13,9.67]
[1725709751454,3.933,127.15,127.13,13.6035]
[1725709753361,3.9332,127.14,127.13,9.67]
[1725709754156,3.9337,127.13,127.11,7.95454205]
[1725709754357,9.67,127.16,127.05,8.21756523]
[1725709754656,33.31,127.16,127.1,9.67]
[1725709754862,3.9341,127.12,127.1,9.67]
[1725709756864,3.9341,127.12,127.1,13.6044]
[1725709758765,3.9341,127.12,127.11,9.67]
[1725709758965,3.9337,127.13,127.11,9.67]
[1725709759463,3.9337,127.13,127.11,13.6041]
[1725709760168,161.86447462,127.19,127.12,9.67]
[1725709760169,154.00087462,127.19,127.12,9.67]
[1725709760374,154.00087462,127.19,127.16,9.67]
[1725709761370,3.9323,127.17,127.16,9.67]
[1725709762068,3.9321,127.18,127.16,9.67]
[1725709762267,154.00087462,127.19,127.16,9.67]
[1725709763271,157.93287462,127.19,127.16,9.67]
[1725709767477,3.932,127.19,127.16,9.67]
[1725709767975,3.932,127.18,127.16,9.67]
[1725709771379,3.932,127.18,127.15,7.7795415]
[1725709771380,3.97105837,127.2,127.15,9.67]
[1725709771577,34.7011,127.22,127.15,13.59542306]
[1725709771975,3.9322,127.18,127.15,13.59542306]
[1725709772270,13.63043635,127.2,127.13,3.9334]
[1725709772476,3.9328,127.16,127.14,9.67]
[1725709772881,3.9328,127.16,127.14,13.6032]
[1725709773183,3.9328,127.16,127.15,9.67]
[1725709773377,3.9324,127.17,127.15,9.67]
[1725709773680,1.3911,127.22,127.16,9.67]
[1725709773879,3.9317,127.19,127.18,9.67]
[1725709775583,3.932,127.18,127.16,9.67]
[1725709778282,3.9317,127.19,127.16,13.6025]
[1725709779685,1.3911,127.22,127.16,13.6025]
[1725709780381,11.0611,127.22,127.16,9.67]
[1725709780981,3.9321,127.18,127.16,9.67]
[1725709786097,3.9321,127.18,127.16,13.6026]
[1725709786287,3.9321,127.18,127.16,9.67]
[1725709791390,3.96799237,127.2,127.15,13.53562507]
[1725709791592,34.7011,127.22,127.15,13.53562507]
[1725709792101,3.9324,127.17,127.15,17.46852507]
[1725709792998,3.96838232,127.2,127.15,13.53562507]
[1725709793187,34.7011,127.22,127.15,13.53562507]
[1725709793391,34.7011,127.22,127.15,17.46842507]
[1725709793392,3.9321,127.18,127.15,17.46842507]
[1725709795193,3.9323,127.17,127.15,17.46842507]
[1725709800696,37.23157515,127.2,127.11,1.2901]
[1725709800903,9.67,127.17,127.12,2.84423938]
[1725709801099,3.98726783,127.16,127.11,10.9601]
[1725709801400,3.9334,127.14,127.12,9.67]
[1725709802300,1.2942,127.18,127.13,9.67]
[1725709802510,1.2942,127.18,127.15,9.67]
[1725709803305,3.9326,127.17,127.15,9.67]
[1725709804000,1.2942,127.18,127.15,9.67]
[1725709804207,1.2942,127.18,127.13,9.67]
[1725709806506,3.9329,127.16,127.13,9.67]
[1725709807309,3.9329,127.15,127.13,9.67]
[1725709816520,3.9332,127.14,127.13,9.67]
[1725709818715,5.2455581,127.19,127.13,9.67]
[1725709818918,5.2455581,127.19,127.15,9.67]
[1725709820522,1.3621,127.19,127.15,9.67]
[1725709821023,5.26383542,127.19,127.15,9.67]
[1725709821221,24.9652,127.22,127.16,9.67]
[1725709821424,9.67,127.21,127.13,2.84474606]
[1725709821718,9.67,127.19,127.11,1.2901]
[1725709821916,9.67,127.16,127.11,1.2901]
[1725709822112,3.9338,127.12,127.11,1.2901]
[1725709822425,9.67,127.13,127.07,9.67]
[1725709822619,9.67,127.13,127.09,5.29688628]
[1725709822917,3.9344,127.11,127.09,5.29688628]
[1725709823227,3.9344,127.11,127.08,2.84877581]
[1725709823417,3.9344,127.11,127.07,13.6052]
[1725709823918,3.9344,127.11,127.07,13.53308051]
[1725709824319,3.9344,127.11,127.07,17.56307578]
[1725709824623,3.9344,127.11,127.09,9.67]
[1725709824814,3.934,127.12,127.09,9.67]
[1725709825014,3.934,127.12,127.1,9.67]
[1725709829030,3.9337,127.13,127.1,13.6043]
[1725709829225,3.9337,127.13,127.11,9.67]
[1725709842132,9.67,127.17,127.11,9.67]
[1725709843134,3.9335,127.14,127.11,13.604]
[1725709844337,3.9335,127.13,127.11,13.604]
[1725709845040,3.9335,127.13,127.11,9.67]
[1725709845231,3.9335,127.13,127.1,13.6043]
[1725709849632,3.9339,127.12,127.1,13.6043]
[1725709853242,3.9341,127.11,127.09,1.3531]
[1725709853946,3.87109021,127.11,127.09,1.3531]
[1725709855146,3.87109021,127.11,127.1,9.67]
[1725709863259,9.67,127.15,127.04,2.7937]
[1725709863260,3.90257011,127.12,127.04,2.7937]
[1725709863468,9.67,127.12,127.05,9.51818103]
[1725709863762,9.67,127.12,127.05,14.9609]
[1725709863763,3.9352,127.08,127.05,14.9609]
[1725709866464,3.9348,127.09,127.06,13.6054]
[1725709871764,3.89273203,127.11,127.07,3.9352]
[1725709871954,9.67,127.13,127.06,9.67]
[1725709872565,3.9349,127.09,127.06,13.6054]
[1725709872865,3.9349,127.09,127.05,1.355]
[1725709872866,3.9349,127.09,127.07,13.62198902]
[1725709874763,3.9346,127.1,127.07,17.55718902]
[1725709876773,3.9348,127.09,127.07,17.55718902]
[1725709877069,3.9348,127.09,127.07,3.95198902]
[1725709877261,3.9348,127.09,127.06,13.6055]
[1725709877864,3.9351,127.08,127.07,3.85005045]
[1725709878261,37.20728067,127.12,127.05,1.355]
[1725709878466,37.20728067,127.12,127.05,11.025]
[1725709878663,37.20728067,127.12,127.05,14.961]
[1725709878864,9.67,127.09,126.94,7.8786]
[1725709879165,3.9365,127.04,127.02,2.85715948]
[1725709879469,3.9365,127.04,127.01,1.4059]
[1725709879967,3.9365,127.04,127.01,5.3431]
[1725709880171,3.9368,127.03,127.01,11.0759]
[1725709881368,3.9364,127.04,127.01,15.0131]
[1725709882273,3.9361,127.05,127.03,9.67]
[1725709882767,3.9357,127.07,127.03,13.6064]
[1725709883066,9.67,127.1,127.05,9.67]
[1725709883872,3.9356,127.07,127.05,9.67]
[1725709884370,9.67,127.1,127.03,13.6064]
[1725709885259,3.9357,127.06,127.03,13.6064]
[1725709898680,3.9357,127.06,127.04,3.9363]
[1725709900985,3.9357,127.06,127.05,9.67]
[1725709903483,9.67,127.09,127.01,2.7646]
[1725709903786,12.3461,127.08,127.02,9.67]
[1725709904174,3.9362,127.05,127.02,13.6067]
[1725709905790,3.9363,127.04,127.02,13.6067]
[1725709912292,3.9363,127.04,127.02,9.67]
[1725709917498,3.9362,127.05,127.02,13.6067]
[1725709917898,3.9363,127.04,127.02,9.67]
[1725709920102,3.9366,127.03,127.02,9.67]
[1725709921194,3.9366,127.03,127.01,5.343]
[1725709921394,13.52423214,127.05,126.98,6.88685205]
[1725709921599,9.67,127.05,126.99,9.67]
[1725709921799,13.63606315,127.05,126.99,9.67]
[1725709922103,13.63606315,127.05,126.99,13.6077]
[1725709922308,9.67,127.04,126.98,9.67]
[1725709922507,3.9373,127.01,126.98,17.5693379]
[1725709923501,3.9371,127.02,126.99,13.6078]
[1725709923702,10.5465,127.08,126.99,9.67]
[1725709923912,3.936,127.05,127.03,9.67]
[1725709925009,134.66572543,127.11,127.04,9.67]
[1725709925212,134.66572543,127.11,127.06,9.67]
[1725709925511,3.9355,127.07,127.05,9.67]
[1725709925906,9.67,127.1,127.02,1.3448]
[1725709926104,3.9359,127.06,127.03,3.9366]
[1725709927311,3.9359,127.06,127.04,9.67]
[1725709930109,9.67,127.08,127.03,3.9366]
[1725709930915,9.67,127.1,127.04,9.67]
[1725709931316,9.67,127.1,127.04,13.6063]
[1725709931816,3.9356,127.07,127.04,13.6063]
[1725709932414,3.9359,127.06,127.04,9.67]
[1725709937627,3.9359,127.06,127.03,3.9365]
[1725709938328,9.67,127.08,127.02,13.6068]
[1725709938528,9.67,127.08,127.02,3.9368]
[1725709938831,9.67,127.07,127.01,1.3823]
[1725709939030,9.67,127.07,126.94,27.55411182]
[1725709939031,1.3185,127.06,127.0,4.03274341]
[1725709939329,3.937,127.02,127.01,2.85698413]
[1725709939528,3.937,127.02,127.0,3.9375]